bitfinex/quotes_ETHUSD_20220123
["timestamp","ask_amount","ask_price","bid_price","bid_amount"]
[1642954101506,0.04,2442.5,2441.9,1.46041925]
[1642954101702,0.04,2442.5,2442.0,0.07663832]
[1642954101962,0.04,2442.7,2442.3,0.01258474]
[1642954102158,0.00267287,2443.4,2442.6,0.0597495]
[1642954102366,0.00267287,2443.4,2442.3,0.01258474]
[1642954102367,1.3006958,2443.2,2442.3,0.01258474]
[1642954102556,1.3006958,2443.2,2442.5,1.43388311]
[1642954103162,0.20532,2443.3,2442.5,1.43388311]
[1642954103557,0.24532,2443.7,2442.6,3.1190148]
[1642954103861,0.24532,2443.7,2442.5,1.73388311]
[1642954103862,0.04,2443.7,2443.5,1.25263207]
[1642954104056,0.04,2443.7,2442.7,0.01288844]
[1642954104259,0.04,2443.7,2442.6,4.8694]
[1642954104457,0.03999999,2444.0,2442.7,1.0]
[1642954104658,0.03999999,2444.0,2442.8,7.85]
[1642954104857,0.03999999,2444.0,2442.8,8.15]
[1642954105057,0.03999999,2444.0,2443.5,1.52776265]
[1642954105707,8.66488964,2444.2,2443.5,1.52776265]
[1642954105708,7.43,2444.2,2443.5,1.52776265]
[1642954105899,0.20532,2444.6,2443.5,1.52776265]
[1642954106110,0.007,2444.9,2443.5,5.64508256]
[1642954106307,0.007,2444.9,2444.1,0.01208466]
[1642954106909,0.007,2444.9,2444.2,0.04035081]
[1642954107514,0.2086776,2445.6,2444.2,0.04035081]
[1642954107515,7.63532,2446.2,2444.4,7.85]
[1642954107712,1.2072142,2446.3,2444.6,0.01276932]
[1642954107907,1.2072142,2446.3,2444.7,1.95157493]
[1642954107908,0.04035806,2445.5,2444.7,1.95157493]
[1642954108109,0.04035806,2445.5,2445.4,1.21221459]
[1642954108413,1.22012087,2446.3,2445.4,1.21221459]
[1642954108615,4.60323847,2447.5,2445.4,1.21221459]
[1642954108616,0.02373847,2447.5,2446.2,0.01200435]
[1642954108816,2.36507298,2448.6,2447.3,0.01250381]
[1642954109014,2.36507298,2448.6,2447.8,0.01206414]
[1642954109015,2.31507298,2448.6,2447.8,0.01206414]
[1642954109213,1.01220357,2449.5,2447.9,0.87422307]
[1642954109214,4.34979802,2449.4,2447.9,0.87422307]
[1642954109462,1.2072142,2449.3,2447.9,0.671]
[1642954109863,1.2072142,2449.3,2448.0,10.6673148]
[1642954110063,0.20655412,2449.2,2448.1,0.80501311]
[1642954110368,30.22012794,2449.9,2448.1,0.80501311]
[1642954110369,2.20219012,2453.2,2449.1,12.39790768]
[1642954110567,21.1,2453.9,2452.4,7.385]
[1642954110771,0.01173934,2454.6,2453.2,7.385]
[1642954110772,1.0,2453.7,2453.2,7.385]
[1642954110981,0.03986,2456.9,2453.4,0.04667108]
[1642954111171,1.45179974,2457.7,2454.2,7.385]
[1642954111365,3.1190148,2457.6,2455.7,9.88963596]
[1642954111567,4.0,2457.4,2455.8,3.38001477]
[1642954111769,0.03986,2458.1,2456.0,0.03520872]
[1642954111971,0.03986,2458.1,2456.1,20.52394864]
[1642954112169,0.04819997,2458.1,2457.6,1.14045953]
[1642954112385,7.75,2458.0,2454.7,0.1627]
[1642954112569,7.385,2456.7,2454.9,3.5]
[1642954112875,7.75,2458.0,2454.0,24.09011156]
[1642954112876,1.28366341,2456.5,2454.0,24.09011156]
[1642954113113,11.3100148,2456.6,2452.6,5.0]
[1642954113114,1.43049364,2453.4,2452.6,5.0]
[1642954113310,7.385,2456.1,2454.4,2.23228331]
[1642954113311,3.4253723,2455.9,2454.4,2.23228331]
[1642954113521,7.60878184,2456.4,2452.7,3.2820148]
[1642954113713,0.08685181,2455.8,2452.8,0.30089962]
[1642954113912,0.08685181,2455.8,2452.9,7.85]
[1642954113913,2.49088167,2455.7,2452.9,7.85]
[1642954114114,0.08685181,2452.8,2451.7,0.1628]
[1642954114311,0.08685181,2452.8,2451.6,0.03341905]
[1642954114312,2.82454181,2455.7,2452.8,0.0868]
[1642954114518,2.82454181,2455.7,2453.8,2.55911833]
[1642954114519,4.0,2455.6,2453.8,2.55911833]
[1642954114713,3.1190148,2455.5,2452.9,2.72191833]
[1642954114914,3.1190148,2455.5,2453.5,0.01273786]
[1642954114915,3.33136872,2455.4,2453.5,0.01273786]
[1642954115112,3.33136872,2455.4,2452.8,1.2007]
[1642954115113,3.0613428,2455.1,2452.8,1.2007]
[1642954115313,1.02071,2454.7,2452.8,1.2007]
[1642954115515,0.591,2454.6,2452.8,1.33889997]
[1642954115710,3.1190148,2454.9,2452.9,0.01274417]
[1642954115711,0.591,2454.5,2452.9,0.01274417]
[1642954115913,0.3,2454.6,2453.0,2.55911833]
[1642954116116,7.221,2454.8,2452.9,0.01274417]
[1642954116312,0.49,2454.7,2452.9,0.01274417]
[1642954116511,1.3023035,2453.1,2452.9,0.01274417]
[1642954116713,6.131,2454.1,2452.7,0.836]
[1642954116714,0.49,2453.0,2452.7,0.836]
[1642954116959,0.49,2452.9,2452.7,0.836]
[1642954117159,7.85,2452.8,2451.2,0.16435]
[1642954117364,0.49,2452.7,2452.1,0.01261122]
[1642954117564,6.131,2452.3,2452.1,1.122e-05]
[1642954117761,6.131,2452.3,2450.9,1.61737347]
[1642954117762,0.653,2452.2,2450.9,1.61737347]
[1642954117963,0.49,2452.2,2452.0,2.55911833]
[1642954118160,6.131,2453.1,2452.0,2.55911833]
[1642954118161,0.163,2452.9,2452.2,0.97999999]
[1642954118359,0.49,2452.6,2452.2,0.97999999]
[1642954118764,0.79,2452.6,2452.2,0.97999999]
[1642954118960,1.36795581,2452.5,2452.2,0.97999999]
[1642954119158,0.49,2452.4,2451.3,0.01280185]
[1642954119358,0.49,2452.4,2450.9,2.55911833]
[1642954119359,6.294,2452.3,2450.9,2.55911833]
[1642954119560,6.294,2452.3,2451.2,2.55911833]
[1642954119561,0.49,2452.2,2451.2,2.55911833]
[1642954119758,0.49,2452.2,2450.9,0.01291477]
[1642954119759,1.0,2452.0,2450.9,0.01291477]
[1642954119956,0.653,2451.9,2451.1,1.52095207]
[1642954120162,0.653,2451.9,2450.9,0.01291477]
[1642954120163,6.784,2451.9,2450.9,0.01291477]
[1642954120359,1.09264536,2451.3,2450.9,0.01291477]
[1642954120598,0.49,2451.2,2450.9,0.01291477]
[1642954120796,0.49,2451.2,2450.5,0.01259261]
[1642954120996,0.49,2451.2,2450.6,2.55911833]
[1642954121196,0.49,2451.2,2450.5,0.01259261]
[1642954121197,1.20200997,2450.9,2450.5,0.01259261]
[1642954121407,0.49,2450.8,2450.5,0.01259261]
[1642954121796,0.49,2450.8,2449.9,3.42623859]
[1642954121797,0.49,2450.8,2450.0,0.01243466]
[1642954122001,0.49,2450.8,2450.0,2.57155299]
[1642954122002,1.27691367,2450.3,2450.0,2.57155299]
[1642954122203,0.49,2450.4,2450.1,1.56425467]
[1642954122406,0.1632,2451.2,2450.3,2.72346833]
[1642954122604,1.02133,2452.1,2451.0,6.72176602]
[1642954122605,0.1632,2452.1,2451.0,6.72176602]
[1642954122802,0.0041,2453.0,2451.1,2.55911833]
[1642954122803,1.0,2452.6,2451.1,2.55911833]
[1642954123004,0.653,2452.5,2451.1,2.55911833]
[1642954123202,0.653,2452.5,2451.0,4.16264769]
[1642954123203,1.09139048,2452.2,2451.3,2.55911833]
[1642954123405,1.0,2452.6,2451.0,4.32699769]
[1642954123406,0.49,2452.1,2451.0,4.32699769]
[1642954123608,1.0,2452.6,2451.8,2.55911833]
[1642954123809,0.6571,2453.0,2451.8,2.55911833]
[1642954123810,0.0041,2453.0,2452.3,0.01221372]
[1642954124547,0.0041,2453.0,2452.7,2.55911833]
[1642954124948,1.14685936,2453.0,2452.3,0.01221372]
[1642954125151,1.14685936,2453.0,2451.8,2.55911833]
[1642954125351,3.9221867,2452.9,2451.6,0.01206502]
[1642954125554,0.603,2452.9,2451.1,2.7873183]
[1642954125750,3.2691867,2452.8,2451.1,2.7873183]
[1642954125952,0.49,2452.7,2451.1,0.22819997]
[1642954126150,4.89547468,2452.6,2451.1,0.22819997]
[1642954126349,1.18528801,2451.6,2451.1,0.22819997]
[1642954126559,1.18528801,2451.6,2450.9,2.57177465]
[1642954126750,0.49,2451.5,2450.9,2.57177465]
[1642954126957,0.49,2451.5,2451.4,6.65911833]
[1642954127155,0.49,2452.1,2451.4,6.65911833]
[1642954127355,0.49,2452.5,2451.6,2.55911833]
[1642954127560,0.113,2452.9,2451.7,3.88828548]
[1642954127755,0.11147115,2452.9,2451.9,0.01260576]
[1642954127955,0.11147115,2452.9,2452.7,2.55911833]
[1642954128214,0.06147115,2452.9,2452.7,2.55911833]
[1642954128413,1.90414568,2453.4,2452.9,0.1229423]
[1642954128613,0.53819997,2453.8,2452.9,0.1229423]
[1642954129312,3.89613513,2453.7,2452.9,0.1229423]
[1642954129515,0.49,2453.6,2452.9,0.1229423]
[1642954129716,6.63577749,2453.5,2452.9,0.1229423]
[1642954130014,0.10581076,2451.9,2451.5,0.17520195]
[1642954130214,0.49,2452.5,2452.0,0.21162152]
[1642954130414,1.15382314,2452.1,2452.0,0.21162152]
[1642954130815,0.49,2452.5,2452.0,0.21162152]
[1642954131415,1.84008745,2452.5,2452.2,2.55911833]
[1642954131618,1.84008745,2452.5,2452.0,0.21162152]
[1642954131856,1.84008745,2452.5,2452.1,1.41907806]
[1642954132049,0.49,2452.5,2452.0,0.21162152]
[1642954132650,0.49,2452.5,2452.0,4.31162152]
[1642954133051,1.33251061,2452.3,2452.0,4.31162152]
[1642954133252,1.33251061,2452.3,2452.1,2.15911833]
[1642954133451,6.63366471,2453.6,2453.0,3.21236593]
[1642954133653,0.00266561,2453.5,2453.0,3.21236593]
[1642954133857,0.49266561,2453.5,2453.0,3.21236593]
[1642954134257,0.49,2453.5,2453.0,3.21236593]
[1642954134452,1.23331809,2453.1,2453.0,3.21236593]
[1642954134654,1.72331809,2453.1,2453.0,3.21236593]
[1642954135692,0.49,2453.1,2453.0,3.21236593]
[1642954136093,0.49,2453.1,2453.0,3.16236593]
[1642954136494,0.04,2453.7,2453.0,5.32148426]
[1642954136697,1.25773048,2453.6,2453.0,5.32148426]
[1642954136902,1.18143937,2453.2,2453.0,3.16236593]
[1642954137898,1.14954838,2453.1,2453.0,3.16236593]
[1642954138103,0.49,2453.5,2453.1,0.00427476]
[1642954138303,0.53,2453.7,2453.3,2.15911833]
[1642954138601,0.04,2453.7,2453.6,6.00911833]
[1642954138801,0.04,2453.7,2453.6,3.9716]
[1642954139199,1.18954838,2453.7,2453.6,3.9716]
[1642954139651,0.04,2453.7,2453.6,3.9716]
[1642954139856,0.04,2453.7,2453.6,8.8216]
[1642954140046,0.04,2453.7,2453.6,0.9716]
[1642954140351,1.36994935,2453.5,2453.2,0.2789]
[1642954140547,0.04,2453.7,2453.4,2.15911833]
[1642954140747,1.14954838,2453.6,2453.4,2.15911833]
[1642954140947,1.14954838,2453.6,2453.2,0.2789]
[1642954141347,1.14954838,2453.6,2453.3,2.15911833]
[1642954141548,0.04,2453.7,2453.3,2.22764367]
[1642954141746,0.04,2453.7,2453.3,2.06329367]
[1642954141960,1.40573451,2453.7,2453.2,0.2789]
[1642954142153,0.49,2453.6,2453.2,0.2789]
[1642954142549,1.14954838,2453.5,2453.2,0.2789]
[1642954142749,1.14954838,2453.5,2453.3,4.1]
[1642954142750,0.49,2453.4,2453.3,4.1]
[1642954143199,0.29,2453.4,2453.3,4.1]
[1642954143397,1.04954838,2453.5,2453.3,4.1]
[1642954143898,0.49,2453.4,2453.3,4.1]
[1642954144698,8.34,2453.4,2453.3,3.8211]
[1642954144902,8.34,2453.4,2453.0,1.12744394]
[1642954144903,1.39628839,2453.2,2453.0,1.12744394]
[1642954145100,1.024,2452.1,2452.0,0.21162152]
[1642954145302,0.49,2452.6,2452.3,2.048]
[1642954145703,0.49,2452.6,2452.0,0.21162152]
[1642954146301,1.4687625,2452.5,2452.0,0.21162152]
[1642954146501,6.5,2452.3,2451.3,2.20149364]
[1642954146701,1.33935852,2451.5,2451.3,2.20149364]
[1642954146951,0.49,2451.7,2451.5,4.01807555]
[1642954147750,0.49,2451.7,2451.5,6.08136922]
[1642954147952,1.915676,2451.7,2451.5,4.01807555]
[1642954148151,0.49,2451.7,2451.5,4.01807555]
[1642954149158,3.0630667,2452.6,2451.5,4.01807555]
[1642954149159,1.02345487,2453.0,2451.6,9.91329367]
[1642954149358,0.01260948,2453.2,2451.5,4.01807555]
[1642954149359,3.67669854,2452.9,2452.3,1.48e-05]
[1642954149555,3.67669854,2452.9,2451.5,4.01807555]
[1642954149556,8.34,2452.8,2451.5,4.01807555]
[1642954149759,6.131,2452.7,2451.5,4.01807555]
[1642954150053,0.49,2452.6,2451.5,4.01807555]
[1642954150254,1.33242953,2451.9,2451.5,4.01807555]
[1642954150455,0.49,2451.8,2451.5,4.01807555]
[1642954150713,7.85,2451.7,2450.6,0.32]
[1642954150912,7.85,2451.7,2450.8,2.06329367]
[1642954150913,0.49,2451.6,2450.8,2.06329367]
[1642954151209,0.49,2451.6,2450.0,3.35104854]
[1642954151418,0.49,2451.6,2449.8,0.17500152]
[1642954151419,1.02138,2451.5,2449.8,0.17500152]
[1642954151621,0.49,2451.4,2449.9,1.14713691]
[1642954151815,2.04325,2451.1,2449.8,0.17500152]
[1642954152017,2.04325,2451.1,2450.3,2.06329367]
[1642954152018,5.2032976,2451.0,2450.3,2.06329367]
[1642954152217,0.49,2451.0,2450.3,2.06329367]
[1642954152417,4.04631853,2450.9,2449.8,0.17500152]
[1642954152617,4.04631853,2450.9,2449.9,3.47300283]
[1642954152618,0.49,2450.8,2449.9,3.47300283]
[1642954152818,3.8267043,2450.7,2450.0,3.4730556]
[1642954153017,1.96668151,2450.6,2450.0,1.32705575]
[1642954153217,1.96668151,2450.6,2449.8,4.27500152]
[1642954153422,1.45669506,2450.4,2449.9,3.47312397]
[1642954153620,0.49,2450.9,2449.9,3.47312397]
[1642954154021,1.5116494,2450.9,2449.9,3.47312397]
[1642954154443,1.55984937,2450.9,2449.9,3.47312397]
[1642954154644,1.46627523,2450.3,2449.9,3.47312397]
[1642954154846,1.46627523,2450.3,2449.5,0.22819997]
[1642954154847,0.49,2450.2,2449.5,0.22819997]
[1642954155047,0.49,2450.2,2449.7,1.55522078]
[1642954155241,0.49,2450.2,2449.8,3.47349123]
[1642954155442,0.49,2450.2,2449.8,4.79578605]
[1642954155642,0.49,2450.2,2449.9,3.47349123]
[1642954156448,0.49,2450.2,2450.0,3.47349123]
[1642954156647,1.50793453,2449.8,2449.4,1.55522078]
[1642954156852,0.49,2449.7,2449.3,1.55522078]
[1642954157051,1.44901361,2449.4,2449.0,1.55522078]
[1642954157251,5.39407,2450.1,2449.5,4.34704083]
[1642954157449,5.05,2449.9,2449.0,5.15760749]
[1642954157653,0.49,2449.8,2449.0,5.15760749]
[1642954157851,0.49,2449.8,2449.0,3.09431382]
[1642954158096,6.60656,2449.9,2448.8,1.55522078]
[1642954158297,1.34041312,2449.3,2448.9,1.55522078]
[1642954158497,0.49,2449.2,2448.7,1.55522078]
[1642954158697,0.49,2449.2,2448.5,1.55522078]
[1642954158898,0.49,2449.2,2448.4,4.13692138]
[1642954158899,0.49,2449.2,2448.9,0.96112972]
[1642954159202,0.49,2449.2,2448.6,1.55522078]
[1642954159800,6.67504996,2449.8,2448.6,1.55522078]
[1642954159801,1.0,2450.1,2449.1,2.06329367]
[1642954160002,1.1832,2450.5,2449.8,0.96112972]
[1642954160003,0.49,2450.0,2449.8,0.96112972]
[1642954160206,0.00266487,2450.5,2450.3,0.97999999]
[1642954160401,4.79,2450.4,2450.3,0.97999999]
[1642954160598,4.93657985,2450.4,2449.1,1.55522078]
[1642954160801,1.31406854,2449.8,2449.3,1.55522078]
[1642954160999,0.49,2449.7,2449.3,2.06329367]
[1642954161202,0.49,2449.7,2449.1,0.96112972]
[1642954161398,1.25080011,2449.4,2448.9,1.70619114]
[1642954161599,1.25080011,2449.4,2448.9,1.55522078]
[1642954161856,0.49,2449.3,2448.9,1.55522078]
[1642954162049,1.0222,2449.5,2448.9,2.06329367]
[1642954162050,0.49,2449.2,2448.9,2.06329367]
[1642954162246,1.0222,2449.5,2448.9,2.06329367]
[1642954162247,0.49,2449.3,2448.9,2.06329367]
[1642954162646,0.49,2449.3,2448.7,1.55522078]
[1642954162852,0.49,2449.3,2448.5,1.55522078]
[1642954163049,1.35109327,2449.0,2448.5,1.55522078]
[1642954163647,3.81888677,2449.2,2449.0,2.70218654]
[1642954163850,1.19509753,2449.1,2448.5,2.06329367]
[1642954164047,0.49,2449.0,2448.5,2.06329367]
[1642954164255,0.49,2449.0,2448.4,1.55522078]
[1642954164450,0.49,2449.0,2448.9,2.01329367]
[1642954164651,0.49,2449.6,2448.9,2.01329367]
[1642954164857,0.49,2449.6,2448.6,1.55522078]
[1642954165052,0.49,2449.6,2448.5,2.31704646]
[1642954165251,0.49,2449.6,2448.8,2.01329367]
[1642954165252,1.13067512,2449.2,2448.8,2.01329367]
[1642954165456,0.49,2449.6,2449.0,2.01329367]
[1642954166300,0.49,2449.6,2448.5,1.56773932]
[1642954166507,0.49,2450.2,2449.5,5.21329367]
[1642954166708,0.49,2450.2,2450.0,2.01329367]
[1642954168111,0.49,2450.2,2449.6,2.01329367]
[1642954168112,1.51767271,2450.1,2449.6,2.01329367]
[1642954168308,1.51767271,2450.1,2449.5,3.2]
[1642954168509,1.51767271,2450.1,2449.6,2.01329367]
[1642954169107,1.51767271,2450.1,2449.5,3.2]
[1642954169372,0.49,2450.2,2449.5,3.2]
[1642954169570,0.49,2450.2,2449.8,2.01329367]
[1642954170069,0.49,2450.2,2449.5,3.2]
[1642954170279,0.49,2450.2,2449.9,2.01329367]
[1642954170879,0.49,2450.2,2449.5,3.2]
[1642954171278,1.08507436,2449.9,2449.3,2.01329367]
[1642954171483,1.21877708,2449.4,2448.9,0.1632]
[1642954171782,0.49,2449.4,2448.9,0.1632]
[1642954172178,0.49,2449.4,2449.0,2.31710354]
[1642954172377,0.49,2449.4,2449.3,6.01329367]
[1642954172577,0.49,2450.1,2449.3,9.86329367]
[1642954172779,3.11436997,2450.9,2449.3,9.86329367]
[1642954172780,0.49,2450.4,2449.3,9.86329367]
[1642954173117,8.17697487,2451.3,2450.3,2.02572966]
[1642954173118,0.49,2450.8,2450.3,2.02572966]
[1642954173315,0.00266487,2451.1,2450.7,2.01329367]
[1642954173507,0.00266487,2451.1,2450.7,1.96329367]
[1642954173914,1.20263092,2451.0,2450.4,1.96329367]
[1642954174110,1.32856587,2450.5,2450.2,0.13819997]
[1642954174315,0.49,2451.0,2450.4,1.96329367]
[1642954174714,0.49,2451.0,2450.2,2.10149364]
[1642954175312,1.23729669,2450.5,2450.2,2.10149364]
[1642954175514,1.18729669,2450.5,2449.9,1.96329367]
[1642954175715,1.20260052,2450.1,2449.6,1.96329367]
[1642954175920,0.49,2450.7,2449.6,1.96329367]
[1642954175921,1.32006294,2449.7,2449.6,1.96329367]
[1642954176117,1.54942531,2449.8,2449.7,2.38513018]
[1642954176717,1.54942531,2449.8,2449.1,1.96329367]
[1642954176718,0.49,2449.8,2449.1,1.96329367]
[1642954177149,0.49,2449.8,2449.0,0.1632]
[1642954178348,1.21336501,2449.2,2449.0,0.1632]
[1642954179550,1.21336501,2449.2,2448.4,0.01210572]
[1642954179551,1.21336501,2449.2,2448.7,1.96329367]
[1642954179750,1.21336501,2449.2,2448.4,0.01210572]
[1642954179950,1.21336501,2449.2,2448.9,1.96329367]
[1642954180152,0.49,2449.5,2448.9,1.96329367]
[1642954180354,0.49,2449.5,2449.4,1.96329367]
[1642954180803,0.49,2449.5,2449.4,1.76329367]
[1642954181210,0.49,2450.0,2449.4,1.76329367]
[1642954181402,0.49,2450.0,2449.0,1.76329367]
[1642954181602,1.26791848,2449.6,2449.0,1.76329367]
[1642954181804,1.40161508,2449.3,2449.1,1.76329367]
[1642954182003,1.40161508,2449.3,2449.1,1.56329367]
[1642954182405,1.32983283,2449.2,2448.8,1.56329367]
[1642954182604,1.32983283,2449.2,2448.6,1.56329367]
[1642954182808,1.53092668,2448.9,2448.6,1.56329367]
[1642954183005,0.49,2449.4,2448.6,1.56329367]
[1642954183208,0.49,2450.1,2448.9,0.02318836]
[1642954183404,3.71863789,2450.7,2450.0,1.56329367]
[1642954183606,0.53819997,2450.7,2450.0,1.56329367]
[1642954183810,0.53819997,2450.7,2449.1,0.16435]
[1642954184008,1.26526024,2449.1,2448.8,0.01271757]
[1642954184206,0.49,2449.5,2449.0,1.56329367]
[1642954184459,0.49,2449.5,2448.5,5.55931385]
[1642954184660,0.49,2449.5,2449.3,1.56329367]
[1642954184862,2.04393,2450.3,2449.5,0.66841219]
[1642954185061,4.53479415,2450.2,2449.5,0.66841219]
[1642954185262,1.51197,2450.1,2449.5,0.66841219]
[1642954185461,2.81197,2450.1,2449.5,0.66841219]
[1642954186865,1.47131644,2449.6,2449.5,0.66841219]
[1642954187067,1.71608312,2449.6,2449.5,0.66841219]
[1642954187268,0.49,2449.6,2449.5,5.71841219]
[1642954187666,0.49,2449.6,2449.5,0.66841219]
[1642954188115,3.08096704,2449.6,2449.5,0.66841219]
[1642954189129,1.94392703,2449.6,2449.5,0.66841219]
[1642954189417,1.94392703,2449.6,2449.5,2.23170586]
[1642954189615,1.94392703,2449.6,2449.5,0.66841219]
[1642954189819,0.49,2449.6,2449.5,0.66841219]
[1642954190218,2.0437101,2450.4,2449.5,0.66841219]
[1642954190424,0.49,2450.6,2450.1,1.56329367]
[1642954190621,0.49,2450.6,2449.5,0.66841219]
[1642954190824,0.49,2450.6,2450.5,1.56329367]
[1642954191022,0.49,2450.6,2450.0,1.56329367]
[1642954191853,0.49,2450.6,2449.8,1.56329367]
[1642954192056,1.6396835,2450.6,2449.8,1.56329367]
[1642954192261,0.49,2450.6,2449.5,0.66841219]
[1642954192658,0.49,2450.6,2450.0,1.56329367]
[1642954193260,0.49,2450.6,2450.3,1.56329367]
[1642954193462,5.16195815,2451.2,2450.3,1.56329367]
[1642954193463,1.02152,2451.2,2450.3,1.56329367]
[1642954193764,1.0213913,2451.6,2449.7,0.16435]
[1642954193765,1.51135,2451.6,2450.8,1.56329367]
[1642954193963,0.49,2451.6,2450.8,1.56329367]
[1642954194361,1.54086207,2451.0,2450.8,1.56329367]
[1642954194560,1.09930165,2450.9,2450.8,1.56329367]
[1642954194761,1.09930165,2450.9,2449.9,0.01264763]
[1642954194961,1.09930165,2450.9,2449.8,0.20409]
[1642954194962,1.09930165,2450.9,2450.4,1.56329367]
[1642954195263,3.73859633,2451.5,2450.0,2.3158523]
[1642954195264,3.96202463,2451.5,2450.0,2.3158523]
[1642954195462,6.00501463,2451.5,2450.0,3.87914597]
[1642954195704,0.49,2451.4,2450.0,3.87914597]
[1642954195904,0.49,2451.4,2450.0,2.3158523]
[1642954196105,0.49,2451.4,2450.8,1.56329367]
[1642954196302,1.37653038,2451.3,2450.8,1.56329367]
[1642954196503,1.40053231,2451.1,2450.8,1.56329367]
[1642954196711,1.40053231,2451.1,2450.0,0.16673763]
[1642954196712,1.21483876,2450.9,2450.4,1.56329367]
[1642954196911,1.21483876,2450.9,2450.0,1.56329367]
[1642954197110,0.49,2451.3,2449.9,0.16673763]
[1642954197307,0.49,2451.3,2450.8,1.56329367]
[1642954197509,0.44,2451.3,2450.8,1.56329367]
[1642954197709,0.44,2451.3,2450.0,2.3158523]
[1642954198111,1.25468702,2451.0,2450.3,1.56329367]
[1642954198510,1.09692548,2451.1,2450.0,2.3158523]
[1642954198709,0.44,2451.3,2450.6,1.56329367]
[1642954199357,0.44,2451.3,2449.9,0.16673763]
[1642954199554,1.52974495,2450.5,2450.3,1.56329367]
[1642954199954,1.52974495,2450.5,2450.0,1.56329367]
[1642954200153,1.52974495,2450.5,2449.7,0.26955439]
[1642954200154,1.29454314,2450.8,2449.7,0.26955439]
[1642954200352,1.29454314,2450.8,2450.6,1.56329367]
[1642954200755,0.44,2451.3,2450.6,1.56329367]
[1642954201156,1.33491261,2451.2,2450.0,1.56329367]
[1642954201357,0.48988,2451.3,2449.7,0.09]
[1642954201358,1.1298935,2450.1,2449.7,0.09]
[1642954201560,1.1298935,2450.1,2449.6,0.1632]
[1642954202259,0.49,2450.3,2449.6,0.1632]
[1642954202460,0.49,2450.6,2450.0,1.56329367]
[1642954202660,0.49,2450.6,2449.8,1.56329367]
[1642954202863,0.49,2450.6,2449.7,2.31627028]
[1642954203128,0.04988,2450.5,2449.7,2.31627028]
[1642954203308,1.24306739,2450.1,2449.7,2.31627028]
[1642954203509,5.34306739,2450.1,2449.7,7.028e-05]
[1642954203713,3.86080034,2450.0,2449.7,7.028e-05]
[1642954203912,3.86080034,2450.0,2449.5,0.66841219]
[1642954204110,1.10294324,2449.7,2449.5,0.66841219]
[1642954204616,2.32401601,2449.7,2449.5,0.66841219]
[1642954205412,2.32401601,2449.7,2449.0,0.1996]
[1642954205413,7.1,2449.5,2449.0,0.1996]
[1642954205615,1.51139951,2449.1,2449.0,1.76289367]
[1642954205811,2.76997588,2449.1,2449.0,0.1996]
[1642954206862,0.49,2449.4,2449.0,0.1996]
[1642954207670,1.42221113,2449.2,2449.0,0.1996]
[1642954207865,1.15289746,2449.2,2449.0,0.1996]
[1642954209169,2.85961759,2449.2,2449.0,0.1996]
[1642954209368,2.85961759,2449.2,2448.0,0.0124452]
[1642954209369,0.04988,2449.1,2448.0,0.0124452]
[1642954209569,0.49,2449.0,2448.0,0.0124452]
[1642954209775,1.4912,2449.0,2448.0,0.0124452]
[1642954210269,1.4912,2449.0,2448.1,2.31751417]
[1642954210599,1.13087343,2448.9,2448.1,2.31751417]
[1642954210802,1.62087343,2448.9,2448.1,2.31751417]
[1642954211505,1.62087343,2448.9,2448.0,2.31751417]
[1642954211702,1.62087343,2448.9,2448.1,1.56329367]
[1642954212112,1.62087343,2448.9,2448.0,2.31751417]
[1642954212313,0.49,2448.9,2448.6,1.56329367]
[1642954212713,0.53819997,2449.5,2448.6,1.56329367]
[1642954212916,0.49,2449.8,2448.8,0.01268502]
[1642954213113,1.19191825,2449.9,2449.4,0.57323544]
[1642954213312,2.36002299,2449.9,2449.2,1.56329367]
[1642954213511,2.36002299,2449.9,2448.8,0.01268502]
[1642954213713,0.49,2449.8,2448.7,3.88080784]
[1642954213912,1.48156096,2449.5,2448.7,3.88080784]
[1642954214112,1.97156096,2449.5,2448.7,1.56329367]
[1642954214372,1.97156096,2449.5,2449.1,0.57323544]
[1642954215175,6.07156096,2449.5,2448.6,1.56329367]
[1642954216176,6.07156096,2449.5,2449.2,1.56329367]
[1642954216377,4.59,2449.5,2449.2,1.56329367]
[1642954216580,4.1,2449.5,2449.2,1.56329367]
[1642954216882,0.8834,2449.5,2449.4,7.86230364]
[1642954217277,0.0001,2449.5,2449.4,8.02904127]
[1642954217482,0.49,2451.0,2449.6,0.01498985]
[1642954217682,0.04,2451.9,2450.7,1.56329367]
[1642954217683,4.0024332,2451.3,2450.7,1.56329367]
[1642954217977,4.0024332,2451.3,2450.6,1.56329367]
[1642954218242,1.55260697,2451.0,2450.6,1.56329367]
[1642954218540,1.34492465,2450.9,2450.6,1.56329367]
[1642954218944,1.34492465,2450.9,2450.6,0.004]
[1642954220949,0.49,2450.8,2450.6,0.004]
[1642954221972,0.53988,2451.4,2450.6,0.004]
[1642954222373,0.49,2451.4,2451.0,1.56329367]
[1642954222574,1.31337997,2451.7,2451.3,1.56329367]
[1642954222575,0.04819997,2451.7,2451.3,1.56329367]
[1642954223171,1.23556221,2451.5,2450.9,0.57323544]
[1642954223570,1.23556221,2451.5,2451.0,1.56329367]
[1642954223970,1.24663259,2451.7,2450.9,0.57323544]
[1642954224174,1.24663259,2451.7,2451.1,1.56329367]
[1642954224369,1.40475285,2451.3,2451.1,1.56329367]
[1642954224771,1.40475285,2451.3,2450.8,1.56329367]
[1642954225180,1.89475285,2451.3,2450.6,0.004]
[1642954225377,1.39810126,2450.7,2450.6,0.004]
[1642954225621,2.94359999,2450.7,2450.6,0.004]
[1642954226209,3.43359999,2450.7,2450.6,0.004]
[1642954226611,3.43359999,2450.7,2450.1,1.51729367]
[1642954226808,2.71240053,2450.3,2450.1,1.51729367]
[1642954227211,1.46502381,2450.3,2450.1,1.51729367]
[1642954227411,0.49,2450.9,2450.1,1.51729367]
[1642954228016,0.49,2450.9,2449.8,0.57323544]
[1642954228212,1.52060767,2450.3,2449.8,2.09052911]
[1642954228415,2.8983316,2450.3,2449.8,2.09052911]
[1642954228813,1.52060767,2450.3,2449.8,2.09052911]
[1642954229354,1.52060767,2450.3,2449.8,1.51729367]
[1642954229558,1.52060767,2450.3,2449.1,0.01250715]
[1642954229559,1.52060767,2450.3,2449.4,1.51729367]